bitfinex/quotes_SOLUSD_20220117
["timestamp","ask_amount","ask_price","bid_price","bid_amount"]
[1642453102792,25.0662,139.43,139.37,0.25]
[1642453104221,31.0662,139.43,139.37,0.25]
[1642453104421,25.0662,139.43,139.37,0.25]
[1642453105221,24.8162,139.43,139.37,0.25]
[1642453108023,24.8162,139.43,139.37,10.54]
[1642453108427,24.8162,139.43,139.37,16.8]
[1642453110727,24.8162,139.43,139.37,27.5588]
[1642453110928,24.8162,139.43,139.41,0.6958908]
[1642453111128,24.8162,139.43,139.42,6.06439994]
[1642453111327,10.7596,139.46,139.42,6.06439994]
[1642453111729,16.7596,139.46,139.42,6.06439994]
[1642453112427,16.7596,139.46,139.41,0.6958908]
[1642453112628,0.25,139.45,139.41,0.6958908]
[1642453119232,71.44,139.44,139.41,0.6958908]
[1642453119433,124.44,139.43,139.41,9.08e-05]
[1642453119634,23.3561,139.42,139.41,9.08e-05]
[1642453119832,29.3561,139.42,139.41,9.08e-05]
[1642453120042,29.6161,139.42,139.41,9.08e-05]
[1642453122740,31.37229958,139.42,139.41,9.08e-05]
[1642453123340,103.06229958,139.42,139.41,9.08e-05]
[1642453123742,123.0,139.41,139.31,9.7447822]
[1642453123940,123.0,139.41,139.31,6.0]
[1642453124140,1.75619958,139.4,139.31,6.0]
[1642453124341,10.7662,139.38,139.29,16.29]
[1642453124544,22.6932,139.37,139.29,16.29]
[1642453124841,16.71692658,139.36,139.29,16.29]
[1642453125041,16.71692658,139.36,139.29,16.55]
[1642453125243,16.97692658,139.36,139.3,0.25]
[1642453126352,22.97692658,139.36,139.3,0.25]
[1642453126647,16.97692658,139.36,139.3,0.25]
[1642453126848,0.25,139.35,139.3,0.25]
[1642453129151,0.25,139.35,139.29,10.29]
[1642453129650,11.0175,139.35,139.25,38.42558369]
[1642453129850,43.03979958,139.35,139.25,38.42558369]
[1642453130451,43.03979958,139.35,139.25,83.32457736]
[1642453131050,114.47979958,139.35,139.25,83.58457736]
[1642453131455,114.47979958,139.35,139.25,83.32457736]
[1642453131950,122.34879958,139.35,139.25,58.93467736]
[1642453132957,120.5926,139.35,139.25,58.93467736]
[1642453133157,120.8526,139.35,139.25,58.93467736]
[1642453133357,112.9836,139.35,139.25,58.93467736]
[1642453133857,112.9836,139.35,139.25,64.93467736]
[1642453134065,112.9836,139.35,139.25,58.93467736]
[1642453134262,112.9836,139.35,139.25,64.93467736]
[1642453134659,112.9836,139.35,139.25,65.19467736]
[1642453134860,112.9836,139.35,139.25,59.19467736]
[1642453141389,112.9836,139.35,139.26,23.6849]
[1642453148393,112.9836,139.35,139.25,48.64467736]
[1642453148598,114.73979958,139.35,139.25,3.74568369]
[1642453148994,114.73979958,139.35,139.22,4.07176797]
[1642453149193,114.73979958,139.35,139.22,10.07176797]
[1642453149595,118.83406154,139.35,139.22,6.0]
[1642453149795,118.83406154,139.35,139.23,0.25]
[1642453155699,118.83406154,139.35,139.22,67.00954205]
[1642453155903,124.57106154,139.35,139.22,24.5557]
[1642453156101,10.29,139.34,139.22,24.5557]
[1642453156404,73.19619958,139.33,139.22,24.5557]
[1642453156602,10.29,139.32,139.2,4.07176797]
[1642453156907,19.07398082,139.31,139.2,4.07176797]
[1642453157104,10.29,139.3,139.2,4.07176797]
[1642453157305,18.29619958,139.3,139.2,4.07176797]
[1642453157707,1.75619958,139.29,139.18,4.07176797]
[1642453157909,17.178,139.29,139.18,4.32176797]
[1642453158112,23.178,139.29,139.18,4.32176797]
[1642453158506,1.75619958,139.28,139.18,4.32176797]
[1642453158708,7.75619958,139.28,139.18,4.07176797]
[1642453158910,18.04619958,139.28,139.15,14.84686797]
[1642453159107,1.75619958,139.27,139.15,14.84686797]
[1642453159306,10.29,139.26,139.15,14.84686797]
[1642453159508,10.29,139.26,139.16,23.751]
[1642453159509,44.01628854,139.25,139.16,23.751]
[1642453159707,45.77248812,139.25,139.16,23.751]
[1642453160009,1.75619958,139.24,139.16,23.751]
[1642453160409,7.75619958,139.24,139.16,23.751]
[1642453161808,71.44,139.23,139.16,23.751]
[1642453162213,88.2198,139.23,139.16,23.751]
[1642453162810,88.2198,139.23,139.12,37.55170937]
[1642453163011,88.2198,139.23,139.12,43.31170937]
[1642453163411,19.57398082,139.22,139.12,43.31170937]
[1642453163812,0.25,139.21,139.12,43.31170937]
[1642453164048,71.69,139.21,139.12,43.31170937]
[1642453164243,77.69,139.21,139.12,43.31170937]
[1642453164748,77.69,139.21,139.13,0.25]
[1642453164944,10.7799,139.19,139.13,0.25]
[1642453165242,16.7799,139.19,139.13,0.25]
[1642453165844,10.7799,139.19,139.13,0.25]
[1642453166141,71.44,139.21,139.13,0.25]
[1642453166343,77.44,139.21,139.13,0.25]
[1642453167145,6.0,139.21,139.13,0.25]
[1642453167346,0.25,139.2,139.13,0.25]
[1642453168348,10.7787,139.21,139.13,1.96296976]
[1642453168549,10.7787,139.21,139.13,12.25296976]
[1642453168749,10.7787,139.21,139.13,18.51296976]
[1642453168950,1.40437122,139.24,139.13,26.64396976]
[1642453169152,6.0,139.24,139.13,64.87187661]
[1642453169351,4.09426196,139.27,139.13,64.87187661]
[1642453169752,14.86846196,139.27,139.13,75.64907661]
[1642453170250,0.25,139.26,139.13,75.64907661]
[1642453170456,0.25,139.26,139.14,8.16831808]
[1642453170651,0.25,139.26,139.16,38.93611775]
[1642453170851,26.21026058,139.26,139.17,0.25]
[1642453171853,0.25,139.26,139.17,0.25]
[1642453172452,87.73,139.29,139.17,0.25]
[1642453172853,10.7745,139.26,139.17,0.25]
[1642453173052,23.69390853,139.25,139.17,0.25]
[1642453173254,29.94390853,139.25,139.17,0.25]
[1642453173653,23.94390853,139.25,139.17,0.25]
[1642453174255,29.94390853,139.25,139.17,0.25]
[1642453174455,23.94390853,139.25,139.17,0.25]
[1642453174855,29.94390853,139.25,139.17,0.25]
[1642453175256,23.94390853,139.25,139.17,0.25]
[1642453175655,29.94390853,139.25,139.17,0.25]
[1642453175855,40.71920853,139.25,139.17,0.25]
[1642453176061,17.0253,139.25,139.17,0.25]
[1642453176960,11.0253,139.25,139.17,0.25]
[1642453177556,17.0253,139.25,139.17,0.25]
[1642453178256,17.2853,139.25,139.17,0.25]
[1642453178457,11.2853,139.25,139.17,0.25]
[1642453179068,17.2853,139.25,139.17,0.25]
[1642453179657,11.2853,139.25,139.17,0.25]
[1642453180358,17.2853,139.25,139.17,0.25]
[1642453183958,17.2853,139.25,139.16,66.00111775]
[1642453184159,17.2853,139.25,139.18,2.04826116]
[1642453184359,17.2853,139.25,139.19,43.42394594]
[1642453184558,88.7253,139.25,139.19,43.42394594]
[1642453184963,17.2853,139.25,139.19,43.42394594]
[1642453186859,17.2853,139.25,139.17,24.74146116]
[1642453187059,17.2853,139.25,139.17,31.00146116]
[1642453187861,28.26142006,139.24,139.17,78.2170478]
[1642453188361,34.26142006,139.24,139.17,78.2170478]
[1642453189159,0.25,139.23,139.17,78.2170478]
[1642453189664,0.25,139.23,139.17,2.04826116]
[1642453189862,8.324,139.23,139.17,2.04826116]
[1642453190288,14.324,139.23,139.17,2.04826116]
[1642453192368,25.1008,139.23,139.15,2.04826116]
[1642453193768,71.44,139.2,139.13,2.04826116]
[1642453194167,77.44,139.2,139.13,8.04826116]
[1642453194366,77.44,139.2,139.13,2.04826116]
[1642453194567,102.1972,139.2,139.13,2.04826116]
[1642453195368,102.1972,139.2,139.12,2.04826116]
[1642453195569,110.3002,139.2,139.12,2.04826116]
[1642453196167,110.3002,139.2,139.11,2.04826116]
[1642453196369,121.0814,139.2,139.11,2.04826116]
[1642453196971,123.01851988,139.2,139.11,2.04826116]
[1642453197171,0.25,139.19,139.11,2.04826116]
[1642453198699,0.25,139.19,139.11,40.20402218]
[1642453199301,10.7832,139.17,139.11,40.20402218]
[1642453199700,16.7832,139.17,139.11,40.20402218]
[1642453199901,16.7832,139.17,139.11,2.04826116]
[1642453202901,10.7832,139.17,139.11,2.04826116]
[1642453203402,0.25,139.16,139.11,2.04826116]
[1642453205511,10.7832,139.17,139.11,8.30826116]
[1642453205711,10.7832,139.17,139.12,0.25]
[1642453205912,23.3293,139.23,139.12,0.25]
[1642453206110,10.7804,139.19,139.12,23.6483]
[1642453206312,10.7804,139.19,139.12,23.9083]
[1642453206514,10.7804,139.19,139.13,41.58071002]
[1642453206916,10.7804,139.19,139.13,41.84071002]
[1642453207416,10.7804,139.19,139.13,43.88897118]
[1642453207614,0.25,139.18,139.13,43.62897118]
[1642453208215,11.0308,139.18,139.13,43.62897118]
[1642453209315,11.0308,139.18,139.16,4.98935775]
[1642453209513,11.0308,139.18,139.16,9.9787155]
[1642453210715,0.25,139.18,139.16,9.9787155]
[1642453211116,10.7796,139.2,139.16,9.9787155]
[1642453211415,28.19132542,139.19,139.16,9.9787155]
[1642453212617,39.23132542,139.19,139.16,9.9787155]
[1642453214421,11.29,139.19,139.16,1.55e-05]
[1642453214621,13.22711988,139.19,139.1,2.04826116]
[1642453215323,41.74982772,139.18,139.1,2.04826116]
[1642453215521,43.6869476,139.18,139.09,2.04826116]
[1642453215722,21.84044164,139.15,139.09,2.04826116]
[1642453216125,22.10044164,139.15,139.09,2.04826116]
[1642453216924,10.7856,139.14,139.09,2.04826116]
[1642453217126,10.7856,139.14,139.07,24.9011]
[1642453217127,10.7856,139.14,139.07,26.94936116]
[1642453218026,10.7856,139.14,139.07,70.26193761]
[1642453218224,11.0456,139.14,139.07,2.04826116]
[1642453218627,11.0456,139.14,139.08,2.04826116]
[1642453219027,82.4856,139.14,139.08,2.04826116]
[1642453219232,0.25,139.13,139.08,2.04826116]
[1642453219432,10.7852,139.12,139.08,2.04826116]
[1642453219833,10.7852,139.12,139.07,2.04826116]
[1642453221137,11.0452,139.12,139.07,2.04826116]
[1642453221837,50.69096827,139.12,139.07,2.04826116]
[1642453223239,0.25,139.11,139.07,2.04826116]
[1642453224761,11.0452,139.12,139.07,2.04826116]
[1642453227966,10.7852,139.12,139.07,2.04826116]
[1642453228662,118.80884796,139.14,139.07,2.04826116]
[1642453229266,0.25,139.13,139.07,2.04826116]
[1642453230663,11.0347,139.13,139.07,2.04826116]
[1642453230963,11.0347,139.13,139.08,2.04826116]
[1642453232569,0.25,139.13,139.08,2.04826116]
[1642453233169,0.25,139.13,139.09,46.11627589]
[1642453233568,0.25,139.13,139.08,2.04826116]
[1642453234670,33.5273,139.15,139.09,35.04709629]
[1642453235272,33.7873,139.15,139.09,35.04709629]
[1642453237179,0.25,139.14,139.09,35.30709629]
[1642453242281,0.25,139.14,139.09,37.35535745]
[1642453242682,0.25,139.14,139.09,2.30826116]
[1642453243181,0.25,139.14,139.09,2.04826116]
[1642453243884,24.09836551,139.14,139.09,2.04826116]
[1642453244289,34.88236551,139.14,139.09,2.04826116]
[1642453245189,35.14236551,139.14,139.08,2.04826116]
[1642453245395,35.14236551,139.14,139.08,2.29826116]
[1642453246389,35.14236551,139.14,139.08,2.04826116]
[1642453249294,11.034,139.14,139.08,1.97706585]
[1642453250522,11.034,139.14,139.09,36.11930869]
[1642453250725,11.034,139.14,139.08,1.97706585]
[1642453252926,11.294,139.14,139.08,1.97706585]
[1642453256131,10.784,139.14,139.08,1.97706585]
[1642453256333,94.6338,139.15,139.09,0.25]
[1642453256531,22.7438,139.15,139.09,0.25]
[1642453256733,1.93711988,139.17,139.09,0.25]
[1642453257131,1.93711988,139.17,139.09,42.73227028]
[1642453257531,36.60631988,139.17,139.1,22.6033]
[1642453258335,34.6692,139.17,139.1,22.6033]
[1642453258535,34.9292,139.17,139.1,22.6033]
[1642453259836,10.7839,139.15,139.1,22.6033]
[1642453260038,33.4833805,139.15,139.1,22.6033]
[1642453260336,10.7839,139.15,139.1,22.6033]
[1642453262241,11.0439,139.15,139.1,22.6033]
[1642453263337,0.25,139.14,139.1,22.6033]
[1642453263537,11.0338,139.14,139.1,22.6033]
[1642453265342,0.25,139.14,139.1,22.6033]
[1642453266241,23.7071,139.15,139.1,22.6033]
[1642453267544,34.4902,139.15,139.1,22.6033]
[1642453271381,0.25,139.14,139.1,22.6033]
[1642453271580,34.4902,139.15,139.1,22.6033]
[1642453272283,40.4902,139.15,139.1,22.6033]
[1642453272482,34.4902,139.15,139.1,22.6033]
[1642453272683,34.2302,139.15,139.1,22.6033]
[1642453272882,10.7831,139.15,139.1,22.6033]
[1642453273082,16.7831,139.15,139.1,22.8633]
[1642453273282,16.7831,139.15,139.1,22.6033]
[1642453276085,10.7831,139.15,139.1,22.6033]
[1642453276287,10.7831,139.15,139.1,28.6033]
[1642453276987,11.0431,139.15,139.1,28.6033]
[1642453277190,11.0431,139.15,139.11,44.68828608]
[1642453277491,33.4762,139.17,139.11,50.68828608]
[1642453277687,33.4762,139.17,139.11,50.94828608]
[1642453277888,22.6941,139.17,139.11,50.94828608]
[1642453278087,22.6941,139.17,139.12,0.25]
[1642453278991,94.9425,139.2,139.12,0.25]
[1642453279190,117.7273,139.2,139.12,23.0829]
[1642453279393,11.97339503,139.19,139.12,23.3429]
[1642453279593,17.97339503,139.19,139.12,23.3429]
[1642453280793,1.19299503,139.19,139.12,34.1215]
[1642453282094,1.19299503,139.19,139.12,33.8715]
[1642453283497,1.19299503,139.19,139.13,0.25]
[1642453283699,1.19299503,139.19,139.13,11.028]
[1642453283898,1.19299503,139.19,139.14,40.02104439]
[1642453284398,1.19299503,139.19,139.14,40.28104439]
[1642453285400,1.19299503,139.19,139.15,0.25]
[1642453286000,22.6306,139.23,139.15,23.5929]
[1642453286201,22.6306,139.23,139.15,23.8429]
[1642453286401,28.6306,139.23,139.15,24.1029]
[1642453286606,22.6306,139.23,139.15,24.1029]
[1642453286803,4.09426196,139.24,139.15,34.3929]
[1642453287003,10.09426196,139.24,139.15,34.3929]
[1642453287204,4.09426196,139.24,139.15,34.3929]
[1642453287505,6.0,139.24,139.15,34.3929]
[1642453287930,30.1165,139.25,139.15,34.3929]
[1642453288435,40.8918,139.25,139.15,45.1691]
[1642453289030,34.8918,139.25,139.15,45.1691]
[1642453289231,40.8918,139.25,139.15,51.1691]
[1642453289430,34.8918,139.25,139.15,45.1691]
[1642453290030,0.25,139.24,139.15,51.1691]
[1642453291032,0.25,139.24,139.15,50.6591]
[1642453291232,72.14,139.24,139.15,33.8829]
[1642453291433,14.95681233,139.23,139.15,33.8829]
[1642453291732,24.669,139.22,139.15,33.8829]
[1642453293535,35.4466,139.22,139.15,33.8829]
[1642453293735,0.25,139.21,139.15,33.8829]
[1642453295740,0.25,139.21,139.16,0.25]
[1642453295944,24.669,139.22,139.16,0.25]
[1642453300141,23.43084416,139.21,139.16,0.25]
[1642453300343,29.43084416,139.21,139.16,0.25]
[1642453301142,29.69084416,139.21,139.16,0.25]
[1642453301543,6.26,139.21,139.16,0.25]
[1642453301743,0.26,139.21,139.16,0.25]
[1642453301944,6.26,139.21,139.16,0.25]
[1642453304446,0.26,139.21,139.16,0.25]
[1642453304647,6.26,139.21,139.16,0.25]
[1642453305247,0.26,139.21,139.16,0.25]
[1642453305647,41.4466,139.22,139.16,0.25]
[1642453307650,26.738067,139.21,139.16,0.25]
[1642453307849,32.738067,139.21,139.16,0.25]
[1642453308551,26.738067,139.21,139.16,0.25]
[1642453308753,35.4466,139.22,139.15,33.8829]
[1642453308952,6.0,139.21,139.15,33.8829]
[1642453309152,41.7066,139.22,139.15,33.8829]
[1642453309654,83.10573738,139.22,139.15,33.8829]
[1642453310056,83.10573738,139.22,139.16,0.25]
[1642453310755,41.4466,139.22,139.16,0.25]
[1642453312055,41.7066,139.22,139.16,0.25]
[1642453312756,0.25,139.21,139.16,0.25]
[1642453318489,0.25,139.21,139.15,34.1429]
[1642453318888,41.7066,139.22,139.16,0.25]
[1642453320591,41.7066,139.22,139.15,23.8529]
[1642453320787,62.38861829,139.22,139.15,23.8529]
[1642453321588,41.7066,139.22,139.15,23.8529]
[1642453322192,35.4466,139.22,139.15,23.8529]
[1642453322391,0.25,139.21,139.15,23.8529]
[1642453323997,24.669,139.22,139.15,34.6293]
[1642453324195,24.669,139.22,139.16,0.25]
[1642453324397,24.669,139.22,139.15,23.8529]
[1642453325199,24.669,139.22,139.15,23.5929]
[1642453325802,0.25,139.21,139.15,23.5929]
[1642453326599,24.669,139.22,139.16,0.25]
[1642453329500,24.929,139.22,139.16,0.25]
[1642453334432,24.669,139.22,139.16,0.25]
[1642453335532,24.669,139.22,139.16,11.0256]
[1642453335731,24.669,139.22,139.16,11.2856]
[1642453336134,24.669,139.22,139.16,11.0256]
[1642453336333,24.669,139.22,139.16,0.25]
[1642453336632,30.669,139.22,139.16,0.25]
[1642453337035,24.669,139.22,139.16,0.25]
[1642453337937,24.929,139.22,139.16,0.25]
[1642453340737,24.669,139.22,139.16,0.25]
[1642453342541,24.669,139.22,139.16,11.0255]
[1642453342742,24.669,139.22,139.16,17.2855]
[1642453343145,4.09426196,139.25,139.16,17.2855]
[1642453343344,23.1592,139.24,139.17,22.6229]
[1642453343747,23.1592,139.24,139.18,0.25]
[1642453344548,23.1592,139.24,139.18,11.0239]
[1642453344746,23.1592,139.24,139.19,45.7943198]
[1642453345145,23.1592,139.24,139.19,52.0543198]
[1642453345545,23.1592,139.24,139.19,51.7943198]
[1642453346949,0.25,139.23,139.19,51.7943198]
[1642453347349,23.1592,139.24,139.19,51.7943198]
[1642453347949,23.1592,139.24,139.19,52.0543198]
[1642453348148,23.1592,139.24,139.19,51.7943198]
[1642453348551,23.1592,139.24,139.19,62.5676198]
[1642453348751,23.4192,139.24,139.19,62.5676198]
[1642453349350,23.4192,139.24,139.19,51.7943198]
[1642453349552,23.1592,139.24,139.19,52.0543198]
[1642453350552,23.4192,139.24,139.19,52.0543198]
[1642453351581,23.1592,139.24,139.19,52.0543198]
[1642453352855,23.1592,139.24,139.19,45.7943198]
[1642453353056,0.25,139.23,139.19,45.7943198]
[1642453353258,0.25,139.23,139.13,10.29]
[1642453353457,0.25,139.23,139.14,24.0386]
[1642453353660,2.00619958,139.23,139.14,24.2886]
[1642453353859,8.00619958,139.23,139.14,24.2886]
[1642453354057,33.3711,139.22,139.14,35.0653]
[1642453354259,39.3711,139.22,139.15,45.18578469]
[1642453354658,39.3711,139.22,139.16,0.25]
[1642453356062,33.3711,139.22,139.16,0.25]
[1642453357263,0.25,139.21,139.16,0.25]
[1642453358669,33.6311,139.22,139.16,0.25]
[1642453359998,22.8534,139.22,139.16,0.25]
[1642453365807,0.25,139.21,139.16,0.25]
[1642453366009,22.8534,139.22,139.16,0.25]
[1642453367009,22.5934,139.22,139.16,0.25]
[1642453367207,22.5934,139.22,139.16,11.0255]
[1642453367607,22.5934,139.22,139.16,11.2855]
[1642453367911,22.5934,139.22,139.16,35.8447]
[1642453373214,22.5934,139.22,139.16,35.5947]
[1642453374418,24.63913637,139.22,139.16,35.5947]
[1642453375427,22.5934,139.22,139.16,35.5947]
[1642453375827,22.5934,139.22,139.17,0.25]
[1642453378053,22.5934,139.22,139.16,35.5947]
[1642453378655,22.5934,139.22,139.16,41.5947]
[1642453378955,22.5934,139.22,139.16,35.5947]
[1642453379855,22.5934,139.22,139.17,0.25]
[1642453383661,28.5934,139.22,139.17,0.25]
[1642453383861,30.63913637,139.22,139.17,0.25]
[1642453387270,30.89913637,139.22,139.17,0.25]
[1642453387468,30.89913637,139.22,139.16,35.5947]
[1642453387869,24.63913637,139.22,139.16,35.5947]
[1642453388571,24.63913637,139.22,139.16,45.8847]
[1642453388767,24.63913637,139.22,139.17,11.0248]
[1642453388967,22.5934,139.22,139.17,11.0248]
[1642453389166,22.5934,139.22,139.17,11.2848]
[1642453389970,22.5934,139.22,139.17,10.7748]
[1642453390870,22.5934,139.22,139.18,0.25]
[1642453393873,22.5934,139.22,139.17,11.0348]
[1642453394876,24.63913637,139.22,139.17,11.0348]
[1642453395273,24.63913637,139.22,139.18,0.25]
[1642453399195,22.5934,139.22,139.18,0.25]
[1642453404200,22.5934,139.22,139.17,11.0348]
[1642453405899,22.5934,139.22,139.18,0.25]
[1642453410410,22.5934,139.22,139.17,11.0348]
[1642453412429,22.5934,139.22,139.17,17.0348]
[1642453412829,22.5934,139.22,139.17,11.0348]
[1642453414030,22.5934,139.22,139.17,21.3248]
[1642453415330,22.5934,139.22,139.17,27.0648]
[1642453415530,22.5934,139.22,139.17,10.29]
[1642453415730,22.5934,139.22,139.16,28.29988493]
[1642453415931,22.5934,139.22,139.17,0.25]
[1642453417131,28.5934,139.22,139.17,0.25]
[1642453418633,28.5934,139.22,139.16,39.33538493]
[1642453419635,22.5934,139.22,139.16,39.33538493]
[1642453419838,22.5934,139.22,139.17,0.25]
[1642453420237,22.5934,139.22,139.16,39.33538493]
[1642453420640,22.5934,139.22,139.17,0.25]
[1642453421944,22.5934,139.22,139.16,39.33538493]
[1642453423542,22.5934,139.22,139.17,0.25]
[1642453423941,22.5934,139.22,139.16,39.33538493]
[1642453424141,22.5934,139.22,139.16,35.5947]
[1642453424344,22.5934,139.22,139.16,39.33549307]
[1642453424742,22.5934,139.22,139.16,35.5947]
[1642453425643,22.5934,139.22,139.16,45.8847]
[1642453426244,22.5934,139.22,139.17,0.25]
[1642453428857,22.5934,139.22,139.17,11.0248]
[1642453429049,22.5934,139.22,139.17,17.2848]
[1642453429953,2.04573637,139.23,139.17,17.2848]
[1642453430450,2.04573637,139.23,139.19,10.7725]
[1642453430652,2.04573637,139.23,139.19,16.1705]
[1642453430851,2.04573637,139.23,139.2,0.25]
[1642453431052,2.04573637,139.23,139.21,3.03219997]
[1642453431252,4.09426196,139.27,139.21,3.29219997]
[1642453431452,2.04737756,139.25,139.22,0.25]
[1642453431853,2.04737756,139.25,139.22,11.0206]
[1642453432251,2.04737756,139.25,139.23,46.11276189]
[1642453432453,2.04737756,139.25,139.23,49.14496186]
[1642453432655,2.04737756,139.25,139.23,49.40496186]
[1642453432854,23.4485,139.28,139.24,0.25]
[1642453433553,23.4485,139.28,139.24,0.85704758]
[1642453434254,0.25,139.27,139.24,0.85704758]
[1642453435755,23.4485,139.28,139.24,0.85704758]
[1642453440660,23.4485,139.28,139.24,1.10704758]
[1642453440859,23.4485,139.28,139.24,1.36704758]
[1642453448694,24.39946943,139.31,139.24,12.13654758]
[1642453448995,24.39946943,139.31,139.24,35.68004758]
[1642453449995,24.39946943,139.31,139.25,10.29]
[1642453450195,23.056,139.31,139.26,43.72358173]
[1642453450395,28.63816196,139.33,139.27,10.29]
[1642453450597,28.63816196,139.33,139.27,19.199]
[1642453450898,28.63816196,139.33,139.28,0.25]
[1642453452397,24.5439,139.33,139.28,0.25]
[1642453452596,24.5439,139.33,139.28,11.0159]
[1642453452796,24.5439,139.33,139.29,47.90213544]
[1642453453197,24.5439,139.33,139.29,48.16213544]
[1642453453399,24.5439,139.33,139.3,0.85704758]
[1642453453799,24.5439,139.33,139.32,43.47808979]
[1642453454000,14.86146196,139.36,139.32,43.47808979]
[1642453454204,20.86146196,139.36,139.32,43.47808979]
[1642453455398,20.86146196,139.36,139.3,0.85704758]
[1642453456702,20.86146196,139.36,139.31,43.88068714]
[1642453456901,20.86146196,139.36,139.31,44.14068714]
[1642453457307,9.49147462,139.45,139.32,137.25711512]
[1642453457503,5.74523149,139.45,139.35,128.59]
[1642453457703,13.0564386,139.49,139.38,71.89]
[1642453457905,13.0564386,139.49,139.39,139.13]
[1642453458105,13.0564386,139.49,139.39,211.02]
[1642453458304,49.39641903,139.48,139.42,10.7535]
[1642453458504,49.39641903,139.48,139.43,52.51442063]
[1642453458707,4.09189476,139.44,139.43,10.29]
[1642453458914,4.09189476,139.44,139.43,22.61439994]
[1642453459309,4.09189476,139.44,139.43,22.86439994]
[1642453459910,4.09189476,139.44,139.43,23.72144752]
[1642453460412,4.09189476,139.44,139.43,33.72144752]
[1642453460610,22.9533,139.51,139.43,33.21144752]
[1642453460816,28.9533,139.51,139.43,33.21144752]
[1642453461012,0.25,139.5,139.43,16.92144752]
[1642453461212,0.25,139.5,139.43,6.92144752]
[1642453461417,72.14,139.5,139.43,12.92144752]
[1642453461614,42.30486675,139.49,139.43,6.92144752]
[1642453461811,42.30486675,139.49,139.43,12.92144752]
[1642453462212,42.30486675,139.49,139.43,6.92144752]
[1642453462412,46.39548301,139.49,139.43,6.92144752]
[1642453462611,52.39548301,139.49,139.43,6.92144752]
[1642453463012,118.28548301,139.49,139.43,6.92144752]
[1642453463211,124.28548301,139.49,139.43,6.92144752]
[1642453463413,120.19486675,139.49,139.43,6.92144752]
[1642453464213,48.30486675,139.49,139.43,6.92144752]
[1642453464613,0.25,139.48,139.43,6.92144752]
[1642453465014,2.00619958,139.48,139.43,0.85704758]
[1642453465312,6.25,139.48,139.43,0.85704758]
[1642453465513,6.0,139.48,139.43,0.85704758]
[1642453465712,10.7583,139.48,139.4,10.55]
[1642453465913,10.7583,139.48,139.4,59.37928413]
[1642453466113,10.7583,139.48,139.41,0.25]
[1642453466517,10.7583,139.48,139.4,10.55]
[1642453467515,0.25,139.47,139.4,10.55]
[1642453467716,10.7583,139.48,139.4,10.55]
[1642453468521,11.0183,139.48,139.41,0.25]
[1642453469024,11.0183,139.48,139.41,1.10704758]
[1642453469221,0.25,139.47,139.41,1.36704758]
[1642453470420,0.25,139.47,139.41,39.97393238]
[1642453471221,0.25,139.47,139.41,1.36704758]
[1642453472147,0.25,139.47,139.41,1.11704758]
[1642453473549,48.30486675,139.49,139.42,35.92341987]
[1642453473748,42.30486675,139.49,139.42,35.92341987]
[1642453473953,42.30486675,139.49,139.43,0.85704758]
[1642453474152,48.30486675,139.49,139.43,0.85704758]
[1642453474552,42.30486675,139.49,139.43,0.85704758]
[1642453474752,42.30486675,139.49,139.43,1.10704758]
[1642453474951,33.7096,139.51,139.43,1.10704758]
[1642453475151,33.7096,139.51,139.44,10.29]
[1642453475352,33.7096,139.51,139.44,10.55]
[1642453475752,22.9533,139.51,139.45,0.25]
[1642453475956,22.9533,139.51,139.46,10.29]
[1642453476154,22.8595,139.52,139.46,10.29]
[1642453476354,22.8595,139.52,139.46,10.55]
[1642453476955,22.8595,139.52,139.47,0.85704758]
[1642453477355,23.1195,139.52,139.47,0.85704758]
[1642453477756,23.1195,139.52,139.47,1.10704758]